Cogmind - Beta 15 @@@ ROGUE MODE // 2025.07.09 @ 21:57:58 Player: Skysub Result: Destroyed by Shrapnel Trap Performance ------------- Evolutions (0) 0 Regions Visited (2) 400 Robots Destroyed (37) 185 Value Destroyed (725) 725 Prototype IDs (0) 0 Alien Tech Used (0) 0 Bonus (-28) -28 TOTAL SCORE: 1282 Bonus ------- Friendly Fire -28 Cogmind --------- Core Integrity 0/250 Matter 295/300 Energy 73/100 System Corruption 2% Temperature Cool (0) Movement Rolling (120) Ox1 Location -10/Subcaves Parts ------- > --- POWER (1) -------- (None) > --- PROPULSION (2) --- Spiked Treads Subdweller Monowheel > --- UTILITY (2) ------ Large Storage Unit Structural Scanner > --- WEAPON (2) ------- Subdweller Shrapnel Launcher > --- INVENTORY (15) --- Subdweller Power Source Light Treads Subdweller Monowheel Subdweller Monowheel Cooling System Small Storage Unit Subdweller Optics Improved Targeting Computer Scrap Shield Subdweller Laser Light Assault Rifle Light Assault Rifle Mining Laser Mining Claw Peak State ------------ > --- POWER ------------ (None) > --- PROPULSION ------- Spiked Treads Subdweller Monowheel > --- UTILITY ---------- Large Storage Unit Structural Scanner > --- WEAPON ----------- Subdweller Laser Makeshift Spear > --- INVENTORY -------- Subdweller Power Source Light Treads Subdweller Monowheel Subdweller Monowheel Cooling System Small Storage Unit Subdweller Optics Improved Targeting Computer Scrap Shield Light Assault Rifle Light Assault Rifle Subdweller Shrapnel Launcher Mining Laser Mining Claw [Rating: 14] Favorites ----------- Power Ion Engine Engine Ion Engine Propulsion Light Treads Treads Light Treads Wheel Compact Wheel Utility Large Storage Unit Device Structural Scanner Storage Large Storage Unit Weapon Light Assault Rifle Energy Gun Subdweller Laser Ballistic Gun Light Assault Rifle Launcher Grenade Launcher Piercing Weapon Makeshift Spear Build | -11 -10 -10 ------- Run | Yrd Mat Sub Slots Evolved . | . . . Power . | . . . Propulsion . | . . . Utility . | . . . Weapon . | . . . Parts Attached 20 | 6 6 8 Power 2 | 1 . 1 Engine 2 | 1 . 1 Core . | . . . Reactor . | . . . Propulsion 8 | 2 2 4 Treads 5 | 2 1 2 Leg . | . . . Wheel 3 | . 1 2 Hover . | . . . Flight . | . . . Utility 3 | 1 2 . Device 1 | . 1 . Storage 2 | 1 1 . Processor . | . . . Hackware . | . . . Protection . | . . . Artifact . | . . . Weapon 7 | 2 2 3 Energy Gun 1 | . . 1 Energy Cannon . | . . . Ballistic Gun 3 | 2 1 . Ballistic Cannon . | . . . Launcher 2 | . 1 1 Special Weapon . | . . . Impact Weapon . | . . . Slashing Weapon . | . . . Piercing Weapon 1 | . . 1 Special Melee Weapon . | . . . Unidentified Prototypes . | . . . Parts Lost 8 | . 1 7 Power 2 | . . 2 Propulsion 3 | . 1 2 Utility . | . . . Weapon 3 | . . 3 Highest Loss Streak 2 | . 1 2 To Critical Strikes . | . . . Average Backups 8 | 1 7 11 Power 1 | . 1 1 Propulsion 1 | . . 1 Utility 2 | . 1 4 Weapon 3 | . 3 4 Tool/Special . | . . . Unused Backups 12 | . 1 11 Power 2 | . . 2 Propulsion 2 | . . 2 Utility 4 | . . 4 Weapon 4 | . 1 3 Tool/Special . | . . . Average Slot Usage (%) 87 | . 84 91 Engine 11 | . 14 8 Treads 23 | . 26 21 Wheel 3 | . . 6 Device 6 | . . 14 Storage 14 | . 14 14 Energy Gun 2 | . . 5 Ballistic Gun 14 | . 19 10 Launcher 4 | . 8 . Piercing Weapon 5 | . . 10 Peak Build Rating 14 | 6 8 14 Average Rating 8 | 5 6 11 On Entrance 4 | . 6 8 Naked Turns . | . . . Heaviest Build 31 | 12 29 31 Greatest Support 40 | 40 40 40 Greatest Overweight (x) 2 | . 2 1 Average Overweight (x) . | . . . Largest Inventory Capacity 15 | 8 15 15 Average Capacity 13 | 7 12 15 Most Carried 15 | 3 9 15 Average Carried 9 | 1 7 12 Final Capacity 15 | 8 15 15 Final Carried 15 | 3 9 15 Class Distribution -------------------- 100% | Mutant Dominant Class ---------------- Mutant | -10/Materials Mutant | -10/Subcaves Resources | -11 -10 -10 ----------- Run | Yrd Mat Sub Matter Collected 882 | 312 225 345 Remotely . | . . . Salvage Created 800 | 219 345 236 Parts 58 | 20 26 12 Haulers Intercepted 2 | . 2 . Recyclers Shooed 1 | 1 . . Parts Field Recycled . | . . . Retrieved Matter . | . . . Parts Self-Destructed . | . . . Prevented . | . . . Kills | -11 -10 -10 ------- Run | Yrd Mat Sub Combat Hostiles Destroyed 22 | . 13 9 Melee 4 | . . 4 Guns 8 | . 4 4 AOE 10 | . 9 1 Classes Destroyed 10 | 3 4 3 Worker 5 | 2 3 . Builder 1 | . 1 . Tunneler 5 | 5 . . Hauler 2 | . 2 . Recycler 1 | 1 . . Swarmer 6 | . 6 . Grunt 8 | . 7 1 Sentry 1 | . . 1 Subdweller 7 | . . 7 Zionite 1 | . . 1 Best Kill Streak 6 | 6 5 2 Combat Bots Only 5 | . 5 2 Max Kills in Single Turn 2 | 1 2 1 Gunslinging . | . . . Exploded 2 | . 2 1 Melee 1 | . . 1 Uniques/NPCs Destroyed . | . . . Combat | -11 -10 -10 -------- Run | Yrd Mat Sub Hostile Shots Fired 129 | . 73 56 Missed 35 | . 18 17 Hits 94 | . 55 39 Projectile 94 | . 55 39 AOE 4 | . . 4 Critical Strikes 5 | . 3 2 Damage Taken 1487 | . 547 940 Core 261 | . 99 162 Absorbed by Shields . | . . . Core Remaining (%) 100 | 100 . . Volleys Fired 98 | 26 56 16 Largest 2 | 2 2 2 Hottest 80 | 40 40 80 Shots Fired 169 | 52 86 31 Gun 142 | 52 70 20 Cannon . | . . . Launcher 27 | . 16 11 Special . | . . . Kinetic 138 | 52 70 16 Thermal 4 | . . 4 Explosive 27 | . 16 11 Electromagnetic . | . . . Robot Hit Streak 11 | 7 11 7 Robot Miss Streak 5 | 4 5 1 Penetration Max . | . . . Secondary Targets . | . . . Shots Hit Robots 117 | 30 47 40 Core Hits 68 | 16 34 18 Critical Kills . | . . . Critical Parts Destroyed . | . . . Critical Strikes . | . . . Melee Attacks 54 | . . 54 Impact . | . . . Slashing . | . . . Piercing 54 | . . 54 Sneak Attacks 2 | . . 2 Combat Hostiles . | . . . Follow-up Attacks . | . . . Damage Inflicted 2599 | 241 1311 1047 Guns 768 | 241 342 185 Cannons . | . . . Explosions 1294 | . 954 340 Melee 522 | . . 522 Ramming 15 | . 15 . Kinetic 709 | 241 342 126 Thermal 59 | . . 59 Explosive 1294 | . 954 340 Electromagnetic . | . . . Impact . | . . . Slashing . | . . . Piercing 522 | . . 522 Highest Corruption 2 | . 2 2 Average Corruption 2 | . 2 2 Corruption Purged . | . . . Corruption Blocked . | . . . Effects 30 | . 13 17 Message Errors 7 | . 4 3 Matter Fused 6 | . 2 4 Heat Flow Errors 4 | . . 4 Energy Discharges 5 | . 1 4 Parts Rejected 1 | . 1 . Data Loss (minor) 3 | . 2 1 Data Loss (major) 1 | . 1 . Misfires 2 | . 1 1 Weapon Failures 1 | . 1 . Overload Shots . | . . . Overflow Damage 50 | . 50 . Projectiles . | . . . Explosions 50 | . 50 . Melee . | . . . Knockbacks . | . . . Impact . | . . . Kinetic . | . . . Secondary . | . . . Self-Inflicted Damage 1 | . 1 . Shots 1 | . 1 . Rammed 3 | . 3 . Targets Rammed 3 | . 3 . Kicked . | . . . Crushed . | . . . Highest Temperature 230 | . 49 230 Average Temperature 43 | . 14 79 Received Heat Transfer 450 | . 225 225 Siege Activations . | . . . Martial Activations . | . . . Shielding Activations . | . . . Robots Disrupted . | . . . Combat Hostiles . | . . . Robots Corrupted . | . . . Combat Hostiles . | . . . Parts Fried . | . . . Impact Corruptions . | . . . Robots Melted . | . . . Combat Hostiles . | . . . Parts Melted 1 | . . 1 Heat Transferred 75 | . . 75 Parts Sabotaged . | . . . Parts Stolen . | . . . Parts Stripped . | . . . Power Chain Reactions . | . . . Alert | -11 -10 -10 ------- Run | Yrd Mat Sub Maximum Alert Level 1 | . 1 . Low Security (%) 93 | 100 92 . Level 1 6 | . 7 . Level 2 . | . . . Level 3 . | . . . Level 4 . | . . . Level 5 . | . . . High Security . | . . . Max Security . | . . . Peak Influence 233 | 15 233 . Initial . | . . . Average 75 | 2 91 . Influence Increases 499 | 40 419 40 Destroy 0b10 Robot/C 300 | . 260 40 Destroy 0b10 Robot/NC 70 | 40 30 . Destroy Leader 54 | . 54 . Successful Hack 12 | . 12 . Destroy Structure 33 | . 33 . Partial Spotted 15 | . 15 . Lose Combat Pursuer 15 | . 15 . Influence Decreases 499 | 40 393 66 Entered New Map 14 | . . 14 Time Decay 465 | 40 383 42 Lost Part 20 | . 10 10 Squads Dispatched 2 | . 2 . Investigation 1 | . 1 . Extermination . | . . . Reinforcement 1 | . 1 . Assault . | . . . Garrison . | . . . Intercept . | . . . Searches Triggered . | . . . Construction Impeded . | . . . Haulers Reinforced . | . . . Active Scanning Responses . | . . . Cargo Convoy Interrupts . | . . . Stealth | -11 -10 -10 --------- Run | Yrd Mat Sub Distress Signals 1 | . 1 . Communications Jammed . | . . . Distress Signals . | . . . Times Spotted 33 | . 24 9 Peak Tracking Total 6 | . 6 2 Tactical Retreats 1 | . 1 . Traps | -11 -10 -10 ------- Run | Yrd Mat Sub Traps Triggered 3 | . 2 1 Indirectly . | . . . Trap Hack Attempts . | . . . Triggered . | . . . Disarmed . | . . . Reprogrammed . | . . . Reused . | . . . Traps Extracted . | . . . Installed . | . . . Triggered . | . . . Machines | -11 -10 -10 ---------- Run | Yrd Mat Sub Machines Disabled . | . . . Max in Single Turn . | . . . Machines Repaired . | . . . Machines Dismantled . | . . . Machines Sabotaged . | . . . Overloaded Fab Kills . | . . . Hacking | -11 -10 -10 --------- Run | Yrd Mat Sub Machines Accessed 6 | . 6 . Terminals 6 | . 6 . Fabricators . | . . . Repair Stations . | . . . Recycling Units . | . . . Scanalyzers . | . . . Garrison Access . | . . . Total Hacks 20 | . 20 . Successful 11 | . 11 . Failed 9 | . 9 . Catastrophic 1 | . 1 . Database Lockouts . | . . . Manual 17 | . 17 . Terminals 20 | . 20 . Fabricators . | . . . Repair Stations . | . . . Recycling Units . | . . . Scanalyzers . | . . . Garrison Access . | . . . Terminal Hacks 4 | . 4 . Terminal Index 1 | . 1 . Alert Level 1 | . 1 . Zone Layout 2 | . 2 . Fabricator Hacks . | . . . Repair Station Hacks . | . . . Recycling Unit Hacks . | . . . Scanalyzer . | . . . Garrison Access Hacks . | . . . Unauthorized Hacks 7 | . 7 . Terminals 7 | . 7 . Botnet 2 | . 2 . Skim 5 | . 5 . Fabricators . | . . . Repair Stations . | . . . Recycling Units . | . . . Scanalyzers . | . . . Garrison Access . | . . . Data Cores Recovered . | . . . Used . | . . . Hacking Detections 6 | . 6 . Full Trace Events . | . . . Feedback Events . | . . . Feedback Blocked . | . . . Robot Schematics Acquired . | . . . Robots Built . | . . . Authchips . | . . . Time . | . . . Total Robot Build Rating . | . . . Part Schematics Acquired . | . . . Parts Built . | . . . Authchips . | . . . Time . | . . . Total Part Build Rating . | . . . Parts Repaired . | . . . Time . | . . . Parts Recycled . | . . . Recycled Matter . | . . . Retrieved Matter . | . . . Retrieved Components . | . . . Parts Scanalyzed . | . . . Part Schematics Acquired . | . . . Parts Damaged . | . . . Bothacking | -11 -10 -10 ------------ Run | Yrd Mat Sub Used RIF Installer . | . . . Robots Hacked . | . . . Non-combat . | . . . Combat . | . . . Robot Hacks Applied . | . . . Relay Couplers Released . | . . . Fabnet Peak Effective % . | . . . Robots Rewired . | . . . Allies Hacked . | . . . Hacks Repelled . | . . . Allies | -11 -10 -10 -------- Run | Yrd Mat Sub Total Allies . | . . . Largest Group . | . . . Highest-Rated Group . | . . . Highest-Rated Ally . | . . . Total Orders . | . . . Ally Attacks . | . . . Total Damage . | . . . Kills . | . . . Allies Corrupted . | . . . Allies Melted . | . . . Intel | -11 -10 -10 ------- Run | Yrd Mat Sub Active Infowar (turns) 1128 | . 6 1122 Structural 1128 | . 6 1122 Robot Analysis Total . | . . . Derelict Logs Recovered . | . . . Drone Launches . | . . . Drone Recoveries . | . . . Exploration | -11 -10 -10 ------------- Run | Yrd Mat Sub Turns Passed 2542 | 261 1159 1122 Spaces Moved 1242 | 69 583 590 Core 4 | 4 . . Treads 973 | 65 527 381 Legs . | . . . Wheels 265 | . 56 209 Hover . | . . . Flight . | . . . Fastest Speed 50 | 50 110 115 Average Speed 157 | 153 157 159 Slowest Speed 260 | 160 240 260 Overloaded Moves . | . . . Propulsion Burnouts . | . . . Robots Hopped . | . . . Potential Cave-ins . | . . . Cave-ins Triggered . | . . . Exploration Rate (%) 46 | 5 87 48 Regions Visited 2 Branch Regions 1 Pre-discovered Areas 2 | . 1 1 Known Exits Taken 1 | . 1 . Unknown Exits Taken 1 | 1 . . Scrap Searched 3 | . . 3 Spaces Dug 8 | . . 8 Terrain Destroyed 110 | . 62 48 Melee 8 | . . 8 Projectile . | . . . AOE 102 | . 62 40 Terrain Rammed . | . . . Walls Destroyed . | . . . Machines Disabled . | . . . Actions | -11 -10 -10 --------- Run | Yrd Mat Sub Total 1618 | 180 749 689 Wait 173 | 77 93 3 Move 1240 | 68 582 590 Hop . | . . . Pick Up 19 | 3 7 9 Fast Attach 12 | 6 3 3 Attach 4 | . 1 3 Detach 1 | . 1 . Swap 10 | . 2 8 Drop 4 | . 1 3 Fire 98 | 26 56 16 Melee 54 | . . 54 Ram . | . . . Kick . | . . . Crush 3 | . 3 . Escape Stasis . | . . . Rewire . | . . . Trap . | . . . Miscellaneous . | . . . Route ------- -11/Scrapyard -10/Materials (discovered 5 exits: *Mat x3 / [*Min] / *Sub) -10/Subcaves (discovered 3 exits: [*Mat x2] / [Rec]) History --------- Turn | Location | Event 7 | -11/Scrapyard | Discovered new exit (range 14) 262 | -11/Scrapyard | Entered Materials 301 | -10/Materials | Build established: Mutant 530 | -10/Materials | Discovered new exit (range 13) 731 | -10/Materials | Discovered new exit (range 16) 955 | -10/Materials | Learned location of Storage (-7) 1028 | -10/Materials | Learned 2 Storage zone layouts 1040 | -10/Materials | Discovered new exit (range 16) 1090 | -10/Materials | Learned 4 Subcaves zone layouts 1142 | -10/Materials | Learned 2 Storage zone layouts 1186 | -10/Materials | Learned Storage security intel 1221 | -10/Materials | Identified exit to Subcaves 1276 | -10/Materials | Learned location of 2 exits from Mines 1319 | -10/Materials | Identified exit to Materials 1421 | -10/Materials | Entered Subcaves 1454 | -10/Subcaves | Core integrity fell below 50% 1482 | -10/Subcaves | A swath of the cavern ceiling suddenly collapsed 1510 | -10/Subcaves | Shifting Twisted Machinery released Scrap Shield 1513 | -10/Subcaves | Shifting Twisted Machinery released Mak. Spear 1554 | -10/Subcaves | Learned location of Zion (-6) 1554 | -10/Subcaves | Met a Zionite searching for "candidates" 1717 | -10/Subcaves | Discovered new exit (range 7) 1765 | -10/Subcaves | Discovered new exit (range 14) 1897 | -10/Subcaves | Discovered new exit (range 10) 2124 | -10/Subcaves | Core integrity fell below 20% 2130 | -10/Subcaves | Shifting Twisted Machinery released Sub. Optics 2164 | -10/Subcaves | Shifting Twisted Machinery released Spk. Treads 2217 | -10/Subcaves | Ambushed by Subdwellers from Twisted Machinery 2543 | -10/Subcaves | Destroyed by Shrapnel Trap Last Messages --------------- 02396_ Found Sub. Monowheel. 02396_ Found 51 Matter. 02397_ Acquired 40 matter. 02398_ Dropped Com. Wheel. 02400_ Subatomizers dissect the Sub. Monowheel. 02401_ Acquired Sub. Monowheel. 02403_ Acquired 10 matter. 02409_ System corrupted: FCS attempts to trigger Sub. Laser. 02409_ System corrupted: Sub. Laser misfires. 02448_ System corrupted: Component data lost. 02454_ Searching scrap... 02454_ Found Sub. Beam Cannon. 02454_ Found 59 Matter. 02464_ System corrupted: Energy discharge (-24). 02488_ Sneak attack on TD-CHX(O). 02541_ Dropped Sub. Shrapnel Launcher. 02541_ Acquired Sub. Shrapnel Launcher. 02543_ Triggered Shrapnel Trap. 02543_ An expanding cloud of shrapnel blasts out in all directions. 02543_ Mak. Spear destroyed. Map ----- +----------------------------------------------------+ | ?????????????????????????????????????????????????? | | ?????????????????????????????????????????????????? | | ?????????????????????????????????????????????????? | | ?????????????????????????????????????????????????? | | ?????????????????????????????????????????????????? | | ?????????????????????????????????????????????????? | | ?????????????????????????????????????????????????? | | ?????????????????????????????????????????????????? | | ?????????????????????????????????????????????????? | | ?????????????????????????????????????????????????? | | ?????????????????????????????????????????????????? | | ?????????????????????????????????????????????????? | | ?????????????????????????????????????????????????? | | ????????????#####????????######??????????????????? | | ##################???????######??????????????????? | | ############## ###???????# ##??????????????????? | | ### #########? ######??????????????? | | ## ######## #######?????????????? | | #### #### ###?????????????? | | # ## ### ##?????????????? | | ##### ### # ## ##?????????????????? | | ##### # # ## ###?????????????????? | | ?### ## ^ #####???????????????? | | ### ## ####???????????????? | | ## ### ## ##???????????????? | | ## ### ### @ ###??????????????? | | ## # ## ## ##??????????????? | | ## ### ### ^ ##### ?????????????? | | ### ###### ## #####?? ##????????? | | ?### ###### ####????? ##????????? | | ??## ###??### #O ####??????? ##????????? | | ??## ### ###??###### ###????????? ##????????? | | ??###### ##????##### ????????????? ###????????? | | ??###### ?????? # ?????????????####????????? | | ?????## ???????? ## ?????????????????????????? | | ?????### ?????????? ## ?????????????????????????? | | ?????### ???????????# ??????????????????????????? | | ??????###???????????# ??????????????????????????? | | ????????????????????## ??????????????????????????? | | ???????????????????? #??????????????????????????? | | ?????????????????????????????????????????????????? | | ?????????????????????????????????????????????????? | | ?????????????????????????????????????????????????? | | ?????????????????????????????????????????????????? | | ?????????????????????????????????????????????????? | | ?????????????????????????????????????????????????? | | ?????????????????????????????????????????????????? | | ?????????????????????????????????????????????????? | | ?????????????????????????????????????????????????? | | ?????????????????????????????????????????????????? | +----------------------------------------------------+ Best States ------------- Heat Dissipation 25 Energy Generation 15 Energy Capacity 250 Matter Stores 300 Matter Capacity 300 Sight Range 16 Terrain Scan Density 10 Evasion (%) 40 Recoil Reduction 2 Item Schematics ----------------- None Robot Schematics ------------------ None Fabricated ------------ Nothing Repaired ---------- Nothing Alien Tech Used ----------------- None Achievements -------------- None Challenges ------------ None Game ------ Seed LongswordEnergyAutobeam Manual? 0 Play Time 00:12:56 Cumulative 150.5 hours Start 2025.07.09 @ 21:44:20 End 2025.07.09 @ 21:57:58 Sessions 1 Manual Loads 0 Difficulty Rogue Special Mode None Game No. 170 Rogue 170 Adventurer 0 Explorer 0 Win Type - Total 3 Types 1/0/0/1/0/0/0/0/0/1 Lore% 65 Gallery% 61 Achievement% 53 Wizard Run 0 Options --------- Layout 1 ASCII 0 Keyboard 1 Movement Numpad Keybinds 0 Fullscreen 1 Font 32/SmallcapsGlow Map View 77x35 Zoom Use 0% Tactical HUD 1 Map Filters NONE Filters NONE Steam 1 RUN: 01e15f6a-b329-49d5-ba26-3be0f558845e